[Event "NJSK 2022 Jeugd B"]
[Site "Almelo, Netherlands"]
[Date "2022.05.05"]
[Round "5.2"]
[White "Wage, Sander"]
[Black "Slagboom, Leandro"]
[Result "0-1"]
[TimeControl "90min/40moves + 30min + 30sec/move"]
[WhiteElo "1859"]
[BlackElo "1997"]

1. d4 {[%clk 01:30:57]} {[%emt 00:00:02]} d5 {[%clk 01:30:55]} {[%emt
00:00:06]} 2. Bf4 {[%clk 01:31:24]} {[%emt 00:00:03]} c5 {[%clk 01:31:20]}
{[%emt 00:00:04]} 3. e3 {[%clk 01:31:50]} {[%emt 00:00:04]} Nc6 {[%clk
01:31:45]} {[%emt 00:00:05]} 4. c3 {[%clk 01:32:13]} {[%emt 00:00:07]} Qb6
{[%clk 01:32:08]} {[%emt 00:00:07]} 5. Qb3 {[%clk 01:32:39]} {[%emt 00:00:04]}
c4 {[%clk 01:31:50]} {[%emt 00:00:49]} 6. Qc2 {[%clk 01:33:03]} {[%emt
00:00:05]} e5 {[%clk 01:30:02]} {[%emt 00:02:18]} 7. dxe5 {[%clk 01:30:02]}
{[%emt 00:03:31]} Bf5 {[%clk 01:29:44]} {[%emt 00:00:49]} 8. Qc1 {[%clk
01:27:53]} {[%emt 00:02:38]} g5 {[%clk 01:29:32]} {[%emt 00:00:42]} 9. Bg3
{[%clk 01:23:04]} {[%emt 00:05:19]} h5 {[%clk 01:29:27]} {[%emt 00:00:36]} 10.
h3 {[%clk 01:18:49]} {[%emt 00:04:44]} Bg7 {[%clk 01:28:03]} {[%emt 00:01:53]}
11. Nf3 {[%clk 01:16:35]} {[%emt 00:02:45]} g4 {[%clk 01:26:44]} {[%emt
00:01:49]} 12. hxg4 {[%clk 01:12:51]} {[%emt 00:04:14]} hxg4 {[%clk 01:26:14]}
{[%emt 00:01:00]} 13. Rxh8 {[%clk 01:13:12]} {[%emt 00:00:10]} Bxh8 {[%clk
01:26:39]} {[%emt 00:00:05]} 14. Nd4 {[%clk 01:13:05]} {[%emt 00:00:37]} Nge7
{[%clk 01:25:28]} {[%emt 00:01:41]} 15. Nd2 {[%clk 00:57:11]} {[%emt 00:16:23]}
Bxe5 {[%clk 01:24:41]} {[%emt 00:01:17]} 16. Bxe5 {[%clk 00:45:57]} {[%emt
00:11:43]} Nxe5 {[%clk 01:25:02]} {[%emt 00:00:11]} 17. e4 {[%clk 00:46:15]}
{[%emt 00:00:11]} Bxe4 {[%clk 01:18:28]} {[%emt 00:07:04]} 18. Nxe4 {[%clk
00:44:55]} {[%emt 00:01:50]} dxe4 {[%clk 01:18:49]} {[%emt 00:00:10]} 19. Qc2
{[%clk 00:44:55]} {[%emt 00:00:30]} O-O-O {[%clk 01:03:09]} {[%emt 00:16:10]}
20. O-O-O {[%clk 00:44:25]} {[%emt 00:00:59]} Nd3+ {[%clk 00:50:03]} {[%emt
00:13:36]} 21. Bxd3 {[%clk 00:44:23]} {[%emt 00:00:32]} cxd3 {[%clk 00:49:40]}
{[%emt 00:00:54]} 22. Qa4 {[%clk 00:39:26]} {[%emt 00:05:27]} Kb8 {[%clk
00:45:21]} {[%emt 00:04:49]} 23. Qa3 {[%clk 00:36:38]} {[%emt 00:03:17]} Nc6
{[%clk 00:39:22]} {[%emt 00:06:29]} 24. Nxc6+ {[%clk 00:34:08]} {[%emt
00:03:01]} Qxc6 {[%clk 00:38:19]} {[%emt 00:01:32]} 25. Qe7 {[%clk 00:33:33]}
{[%emt 00:01:05]} Qd5 {[%clk 00:37:59]} {[%emt 00:00:50]} 26. Kb1 {[%clk
00:32:51]} {[%emt 00:01:12]} f5 {[%clk 00:32:01]} {[%emt 00:06:28]} 27. c4
{[%clk 00:30:17]} {[%emt 00:03:05]} Qd4 {[%clk 00:30:52]} {[%emt 00:01:39]} 28.
c5 {[%clk 00:28:41]} {[%emt 00:02:06]} Rc8 {[%clk 00:28:26]} {[%emt 00:02:56]}
29. c6 {[%clk 00:25:38]} {[%emt 00:03:32]} Rxc6 {[%clk 00:27:37]} {[%emt
00:01:19]} 30. Qf8+ {[%clk 00:25:23]} {[%emt 00:00:44]} Rc8 {[%clk 00:23:34]}
{[%emt 00:04:34]} 31. Qxf5 {[%clk 00:25:39]} {[%emt 00:00:14]} Qc4 {[%clk
00:20:26]} {[%emt 00:03:39]} 32. Qf4+ {[%emt 00:01:09]} Ka8 33. Rc1 {[%emt
00:00:01]} 0-1

[Event "NJSK 2022 Jeugd B"]
[Site "Almelo, Netherlands"]
[Date "2022.05.05"]
[Round "5.3"]
[White "Labruyere, Roger"]
[Black "Van Egmond, Tom"]
[Result "1-0"]
[TimeControl "90min/40moves + 30min + 30sec/move"]
[WhiteElo "2199"]
[BlackElo "1672"]

1. d4 {[%emt 00:00:30]} d5 {[%clk 01:30:50]} 2. Nf3 {[%clk 01:31:00]} {[%emt
00:00:10]} e6 {[%clk 01:31:05]} {[%emt 00:00:15]} 3. c4 {[%clk 01:31:23]}
{[%emt 00:00:06]} a6 {[%clk 01:31:16]} {[%emt 00:00:19]} 4. cxd5 {[%clk
01:31:21]} {[%emt 00:00:33]} exd5 {[%clk 01:31:41]} {[%emt 00:00:05]} 5. Nc3
{[%clk 01:31:46]} {[%emt 00:00:04]} c6 {[%clk 01:32:06]} {[%emt 00:00:06]} 6.
Bg5 {[%clk 01:30:02]} {[%emt 00:02:14]} Be7 {[%clk 01:32:15]} {[%emt 00:00:21]}
7. Bxe7 {[%clk 01:29:55]} {[%emt 00:00:36]} Nxe7 {[%clk 01:30:45]} {[%emt
00:02:00]} 8. e3 {[%clk 01:30:15]} {[%emt 00:00:11]} O-O {[%clk 01:30:45]}
{[%emt 00:00:30]} 9. Bd3 {[%clk 01:29:44]} {[%emt 00:01:01]} Bf5 {[%clk
01:27:07]} {[%emt 00:04:07]} 10. O-O {[%clk 01:29:37]} {[%emt 00:00:37]} Nd7
{[%clk 01:25:49]} {[%emt 00:01:49]} 11. b4 {[%clk 01:28:43]} {[%emt 00:01:24]}
Nb6 {[%clk 01:19:21]} {[%emt 00:06:57]} 12. a4 {[%clk 01:23:33]} {[%emt
00:05:41]} Re8 {[%clk 01:11:20]} {[%emt 00:08:31]} 13. Rb1 {[%clk 01:19:12]}
{[%emt 00:04:50]} f6 {[%clk 00:58:30]} {[%emt 00:13:21]} 14. Ne2 {[%clk
01:11:54]} {[%emt 00:07:48]} Bxd3 {[%clk 00:52:26]} {[%emt 00:06:34]} 15. Qxd3
{[%clk 01:11:10]} {[%emt 00:01:14]} Nec8 {[%clk 00:52:10]} {[%emt 00:00:46]} 16.
Nc3 {[%clk 00:58:47]} {[%emt 00:12:53]} Nd6 {[%clk 00:50:09]} {[%emt 00:02:31]}
17. Nd2 {[%clk 00:56:07]} {[%emt 00:03:09]} Qe7 {[%clk 00:44:30]} {[%emt
00:06:10]} 18. Rfe1 {[%clk 00:54:18]} {[%emt 00:02:18]} Rad8 {[%clk 00:37:27]}
{[%emt 00:07:34]} 19. b5 {[%clk 00:49:58]} {[%emt 00:04:50]} axb5 {[%clk
00:36:15]} {[%emt 00:01:42]} 20. axb5 {[%clk 00:50:08]} {[%emt 00:00:20]} Nbc4
{[%clk 00:36:23]} {[%emt 00:00:21]} 21. f3 {[%clk 00:36:39]} {[%emt 00:13:59]}
Qf7 {[%clk 00:23:19]} {[%emt 00:13:34]} 22. Nxc4 {[%clk 00:22:39]} {[%emt
00:14:31]} Nxc4 {[%clk 00:23:33]} {[%emt 00:00:16]} 23. Nd1 {[%clk 00:22:19]}
{[%emt 00:00:49]} Ra8 {[%clk 00:21:52]} {[%emt 00:02:12]} 24. Rb3 {[%clk
00:16:45]} {[%emt 00:06:04]} Ra1 {[%clk 00:19:15]} {[%emt 00:03:07]} 25. bxc6
{[%clk 00:13:57]} {[%emt 00:03:18]} bxc6 {[%clk 00:19:38]} {[%emt 00:00:08]} 26.
Qc3 {[%clk 00:13:59]} {[%emt 00:00:26]} Ra2 {[%clk 00:17:38]} {[%emt 00:02:30]}
27. Nf2 {[%clk 00:09:27]} {[%emt 00:05:02]} Rea8 {[%clk 00:11:19]} {[%emt
00:06:50]} 28. Reb1 {[%clk 00:07:46]} {[%emt 00:02:10]} Qc7 {[%clk 00:08:47]}
{[%emt 00:03:02]} 29. Rb7 {[%clk 00:06:10]} {[%emt 00:02:07]} Qd6 {[%clk
00:09:10]} {[%emt 00:00:06]} 30. Ne4 {[%clk 00:05:40]} {[%emt 00:01:00]} Qf8
{[%clk 00:06:29]} {[%emt 00:03:12]} 31. Nc5 {[%clk 00:04:27]} {[%emt 00:01:42]}
Qd6 {[%clk 00:04:24]} {[%emt 00:02:36]} 32. Rd7 {[%clk 00:03:33]} {[%emt
00:01:24]} Rxg2+ {[%clk 00:04:33]} {[%emt 00:00:20]} 33. Kxg2 {[%clk 00:03:57]}
{[%emt 00:00:05]} Ra2+ {[%clk 00:04:59]} {[%emt 00:00:05]} 34. Rb2 {[%clk
00:01:24]} {[%emt 00:03:04]} Nxb2 {[%clk 00:00:46]} {[%emt 00:04:42]} 35. Qb3
{[%clk 00:01:03]} {[%emt 00:00:51]} Nd1+ {[%clk 00:00:45]} {[%emt 00:00:32]} 36.
Qxa2 {[%clk 00:01:29]} {[%emt 00:00:03]} Nxe3+ {[%clk 00:01:12]} {[%emt
00:00:04]} 37. Kh3 {[%clk 00:01:44]} {[%emt 00:00:14]} Qb8 {[%emt 00:01:46]} 38.
Qa7 {[%clk 00:01:28]} 1-0

[Event "NJSK 2022 Jeugd B"]
[Site "Almelo, Netherlands"]
[Date "2022.05.05"]
[Round "5.4"]
[White "Klaren, Oscar"]
[Black "Smid, Jelle"]
[Result "1/2-1/2"]
[TimeControl "90min/40moves + 30min + 30sec/move"]
[WhiteElo "1878"]
[BlackElo "1450"]

1. e4 {[%clk 01:30:57]} {[%emt 00:00:01]} c5 {[%clk 01:30:53]} {[%emt
00:00:07]} 2. Nf3 {[%clk 01:31:22]} {[%emt 00:00:05]} Nc6 {[%clk 01:31:17]}
{[%emt 00:00:07]} 3. Bb5 {[%clk 01:31:47]} {[%emt 00:00:05]} g6 {[%clk
01:31:40]} {[%emt 00:00:07]} 4. O-O {[%clk 01:32:10]} {[%emt 00:00:06]} Bg7
{[%clk 01:32:05]} {[%emt 00:00:05]} 5. Re1 {[%clk 01:32:34]} {[%emt 00:00:06]}
e5 {[%clk 01:32:28]} {[%emt 00:00:08]} 6. Bxc6 {[%clk 01:32:58]} {[%emt
00:00:06]} dxc6 {[%clk 01:32:48]} {[%emt 00:00:09]} 7. d3 {[%clk 01:33:22]}
{[%emt 00:00:06]} Qe7 {[%clk 01:29:56]} {[%emt 00:03:23]} 8. a3 {[%clk
01:33:37]} {[%emt 00:00:14]} a5 {[%clk 01:28:13]} {[%emt 00:02:14]} 9. Be3
{[%clk 01:33:49]} {[%emt 00:00:18]} Nf6 {[%clk 01:27:09]} {[%emt 00:01:34]} 10.
a4 {[%clk 01:33:06]} {[%emt 00:01:13]} b6 {[%clk 01:25:56]} {[%emt 00:01:43]}
11. Na3 {[%clk 01:33:19]} {[%emt 00:00:17]} Ba6 {[%clk 01:25:54]} {[%emt
00:00:32]} 12. b3 {[%clk 01:33:15]} {[%emt 00:00:33]} O-O {[%clk 01:24:13]}
{[%emt 00:02:11]} 13. Nc4 {[%clk 01:28:53]} {[%emt 00:04:53]} Nd7 {[%clk
01:22:17]} {[%emt 00:02:26]} 14. Qd2 {[%clk 01:27:54]} {[%emt 00:01:29]} Rfb8
{[%clk 01:19:18]} {[%emt 00:03:28]} 15. Bh6 {[%clk 01:24:52]} {[%emt 00:03:33]}
f6 {[%clk 01:17:28]} {[%emt 00:02:20]} 16. Bxg7 {[%clk 01:24:32]} {[%emt
00:00:50]} Kxg7 {[%clk 01:17:46]} {[%emt 00:00:11]} 17. Ne3 {[%clk 01:23:00]}
{[%emt 00:02:02]} Nf8 {[%clk 01:12:57]} {[%emt 00:05:20]} 18. Rf1 {[%clk
01:09:50]} {[%emt 00:13:40]} Ne6 {[%clk 01:12:17]} {[%emt 00:01:09]} 19. Nh4
{[%clk 01:09:17]} {[%emt 00:01:03]} Kh8 {[%clk 01:07:14]} {[%emt 00:05:33]} 20.
g3 {[%clk 01:04:28]} {[%emt 00:05:19]} Rg8 {[%clk 01:04:02]} {[%emt 00:03:42]}
21. Kh1 {[%clk 01:01:07]} {[%emt 00:03:52]} Raf8 {[%clk 01:00:29]} {[%emt
00:04:03]} 22. Rae1 {[%clk 00:47:41]} {[%emt 00:13:55]} Bc8 {[%clk 00:55:38]}
{[%emt 00:05:21]} 23. Nc4 {[%clk 00:41:25]} {[%emt 00:06:47]} Qd8 {[%clk
00:50:22]} {[%emt 00:05:45]} 24. Ng2 {[%clk 00:36:12]} {[%emt 00:05:45]} Ba6
{[%clk 00:40:20]} {[%emt 00:10:32]} 25. f4 {[%clk 00:33:45]} {[%emt 00:02:57]}
Bxc4 {[%clk 00:39:02]} {[%emt 00:01:47]} 26. bxc4 {[%clk 00:34:10]} {[%emt
00:00:04]} Qd7 {[%clk 00:34:25]} {[%emt 00:05:07]} 27. Rb1 {[%clk 00:32:22]}
{[%emt 00:02:19]} Rb8 {[%clk 00:34:36]} {[%emt 00:00:19]} 28. f5 {[%clk
00:30:06]} {[%emt 00:02:46]} gxf5 {[%clk 00:33:37]} {[%emt 00:01:29]} 29. Rxf5
{[%clk 00:30:27]} {[%emt 00:00:10]} Rgf8 {[%clk 00:30:39]} {[%emt 00:03:27]} 30.
Rbf1 {[%clk 00:27:25]} {[%emt 00:03:33]} b5 {[%clk 00:24:02]} {[%emt 00:07:07]}
31. cxb5 {[%clk 00:18:59]} {[%emt 00:08:56]} cxb5 {[%clk 00:24:19]} {[%emt
00:00:13]} 32. Rxf6 {[%clk 00:16:23]} {[%emt 00:03:05]} Rxf6 {[%clk 00:24:33]}
{[%emt 00:00:15]} 33. Rxf6 {[%clk 00:16:49]} {[%emt 00:00:05]} b4 {[%clk
00:20:34]} {[%emt 00:04:29]} 34. Qh6 {[%clk 00:15:36]} {[%emt 00:01:43]} b3
{[%clk 00:18:29]} {[%emt 00:02:36]} 35. cxb3 {[%clk 00:14:21]} {[%emt
00:01:45]} Qxd3 {[%clk 00:18:09]} {[%emt 00:00:49]} 36. Ne3 {[%clk 00:14:01]}
{[%emt 00:00:51]} Qxe4+ {[%clk 00:18:12]} {[%emt 00:00:26]} 37. Kg1 {[%clk
00:14:25]} {[%emt 00:00:06]} Ng7 {[%clk 00:16:00]} {[%emt 00:02:41]} 38. Nf5
{[%clk 00:08:52]} {[%emt 00:06:04]} Qe1+ {[%clk 00:15:41]} {[%emt 00:00:48]} 39.
Kg2 {[%clk 00:09:16]} {[%emt 00:00:06]} Qe2+ {[%clk 00:16:02]} {[%emt
00:00:10]} 40. Kg1 {[%clk 00:04:15]} {[%emt 00:05:31]} Qe1+ {[%clk 00:16:18]}
{[%emt 00:00:14]} 41. Kg2 {[%clk 00:04:42]} {[%emt 00:00:04]} Qe2+ {[%clk
00:16:41]} {[%emt 00:00:06]} 42. Kg1 {[%clk 00:24:13]} {[%emt 00:10:59]} Qe1+
{[%clk 00:46:21]} {[%emt 00:00:09]} 1/2-1/2

[Event "NJSK 2022 Jeugd B"]
[Site "Almelo, Netherlands"]
[Date "2022.05.05"]
[Round "5.5"]
[White "Groen, Jari"]
[Black "Niemeijer, Leon"]
[Result "1-0"]
[TimeControl "90min/40moves + 30min + 30sec/move"]
[WhiteElo "1750"]
[BlackElo "1693"]

1. e4 {[%clk 01:30:56]} {[%emt 00:00:04]} e6 {[%clk 01:30:58]} {[%emt
00:00:02]} 2. d4 {[%clk 01:31:07]} {[%emt 00:00:20]} d5 {[%clk 01:31:23]}
{[%emt 00:00:05]} 3. Nc3 {[%clk 01:31:20]} {[%emt 00:00:15]} Nf6 {[%clk
01:31:46]} {[%emt 00:00:08]} 4. e5 {[%clk 01:31:30]} {[%emt 00:00:20]} Nfd7
{[%clk 01:32:10]} {[%emt 00:00:07]} 5. f4 {[%clk 01:31:40]} {[%emt 00:00:20]}
c5 {[%clk 01:32:33]} {[%emt 00:00:07]} 6. Nf3 {[%clk 01:31:54]} {[%emt
00:00:15]} Nc6 {[%clk 01:32:55]} {[%emt 00:00:08]} 7. Be3 {[%clk 01:31:56]}
{[%emt 00:00:28]} cxd4 {[%clk 01:33:11]} {[%emt 00:00:15]} 8. Nxd4 {[%clk
01:32:07]} {[%emt 00:00:18]} Qb6 {[%clk 01:33:30]} {[%emt 00:00:11]} 9. a3
{[%clk 01:32:13]} {[%emt 00:00:24]} Bc5 {[%clk 01:29:42]} {[%emt 00:04:18]} 10.
Ncb5 {[%clk 01:32:09]} {[%emt 00:00:34]} O-O {[%clk 01:00:36]} {[%emt
00:29:34]} 11. b4 {[%clk 01:28:05]} {[%emt 00:04:36]} Bxd4 {[%clk 00:57:08]}
{[%emt 00:03:58]} 12. Nxd4 {[%clk 01:16:36]} {[%emt 00:11:59]} Nxd4 {[%clk
00:57:22]} {[%emt 00:00:15]} 13. Bxd4 {[%clk 01:16:49]} {[%emt 00:00:18]} Qc7
{[%clk 00:57:30]} {[%emt 00:00:22]} 14. Bd3 {[%clk 01:15:08]} {[%emt 00:02:11]}
f5 {[%clk 00:46:13]} {[%emt 00:11:47]} 15. exf6 {[%clk 01:04:53]} {[%emt
00:10:44]} Nxf6 {[%clk 00:46:19]} {[%emt 00:00:24]} 16. O-O {[%clk 01:03:45]}
{[%emt 00:01:38]} Ne4 {[%clk 00:43:04]} {[%emt 00:03:43]} 17. Qh5 {[%clk
00:50:26]} {[%emt 00:13:50]} Bd7 {[%clk 00:29:23]} {[%emt 00:14:12]} 18. Rae1
{[%clk 00:44:43]} {[%emt 00:06:13]} Rxf4 {[%clk 00:25:58]} {[%emt 00:03:55]} 19.
Rxf4 {[%clk 00:36:35]} {[%emt 00:08:38]} Qxf4 {[%clk 00:25:09]} {[%emt
00:01:19]} 20. Bxe4 {[%clk 00:29:26]} {[%emt 00:07:38]} dxe4 {[%clk 00:24:44]}
{[%emt 00:00:56]} 21. Rf1 {[%clk 00:29:35]} {[%emt 00:00:21]} g6 {[%clk
00:24:14]} {[%emt 00:01:00]} 22. Qc5 {[%clk 00:28:40]} {[%emt 00:01:24]} Qh4
{[%clk 00:12:44]} {[%emt 00:12:01]} 23. Qe5 {[%clk 00:28:41]} {[%emt 00:00:28]}
1-0

[Event "NJSK 2022 Jeugd B"]
[Site "Almelo, Netherlands"]
[Date "2022.05.05"]
[Round "5.6"]
[White "Aarts, Joaquin"]
[Black "De Rooij, Kevin"]
[Result "1/2-1/2"]
[TimeControl "90min/40moves + 30min + 30sec/move"]
[WhiteElo "1631"]
[BlackElo "1584"]

1. d4 {[%clk 01:30:57]} {[%emt 00:00:03]} d5 {[%clk 01:30:54]} {[%emt
00:00:06]} 2. Bf4 {[%clk 01:31:25]} {[%emt 00:00:03]} c5 {[%clk 01:31:16]}
{[%emt 00:00:08]} 3. e3 {[%clk 01:31:42]} {[%emt 00:00:13]} cxd4 {[%clk
01:31:09]} {[%emt 00:00:36]} 4. exd4 {[%clk 01:32:04]} {[%emt 00:00:08]} Nc6
{[%clk 01:30:58]} {[%emt 00:00:42]} 5. c3 {[%clk 01:32:09]} {[%emt 00:00:25]}
Nf6 {[%clk 01:30:14]} {[%emt 00:01:13]} 6. Bd3 {[%clk 01:32:01]} {[%emt
00:00:39]} Bg4 {[%clk 01:28:24]} {[%emt 00:02:20]} 7. Qb3 {[%clk 01:26:23]}
{[%emt 00:06:09]} Qb6 {[%clk 01:13:43]} {[%emt 00:15:10]} 8. h3 {[%clk
01:24:18]} {[%emt 00:02:35]} Bd7 {[%clk 01:09:55]} {[%emt 00:04:17]} 9. Nd2
{[%clk 01:24:26]} {[%emt 00:00:23]} Qxb3 {[%clk 01:07:48]} {[%emt 00:02:37]} 10.
axb3 {[%clk 01:22:56]} {[%emt 00:02:00]} e6 {[%clk 01:07:15]} {[%emt 00:01:03]}
11. Ngf3 {[%clk 01:21:05]} {[%emt 00:02:21]} Be7 {[%clk 01:06:12]} {[%emt
00:01:33]} 12. O-O {[%clk 01:21:18]} {[%emt 00:00:17]} O-O {[%clk 01:06:35]}
{[%emt 00:00:07]} 13. Ra2 {[%clk 01:18:23]} {[%emt 00:03:25]} Rfd8 {[%clk
01:03:13]} {[%emt 00:03:52]} 14. Rfa1 {[%clk 01:18:02]} {[%emt 00:00:52]} a6
{[%clk 00:59:02]} {[%emt 00:04:41]} 15. b4 {[%clk 01:18:07]} {[%emt 00:00:24]}
Na7 {[%clk 00:58:57]} {[%emt 00:00:35]} 16. Bxa6 {[%clk 01:16:17]} {[%emt
00:02:20]} bxa6 {[%clk 00:46:40]} {[%emt 00:12:48]} 17. Rxa6 {[%emt 00:00:55]}
Nh5 {[%clk 00:46:21]} 18. Bh2 {[%clk 01:16:03]} {[%emt 00:01:07]} Bb5 {[%clk
00:39:39]} {[%emt 00:07:12]} 19. Rxa7 {[%clk 01:16:13]} {[%emt 00:00:20]} Rxa7
{[%clk 00:39:59]} {[%emt 00:00:10]} 20. Rxa7 {[%clk 01:16:39]} {[%emt
00:00:04]} Kf8 {[%clk 00:38:46]} {[%emt 00:01:43]} 21. Rb7 {[%clk 00:52:09]}
{[%emt 00:25:00]} Ba6 {[%clk 00:36:20]} {[%emt 00:02:56]} 22. Rb8 {[%clk
00:48:04]} {[%emt 00:04:35]} Bc8 {[%clk 00:36:31]} {[%emt 00:00:19]} 23. Ne5
{[%clk 00:47:14]} {[%emt 00:01:21]} Bd6 {[%clk 00:32:41]} {[%emt 00:04:19]} 24.
Ng6+ {[%clk 00:42:47]} {[%emt 00:04:57]} fxg6 {[%clk 00:31:28]} {[%emt
00:01:42]} 25. Bxd6+ {[%clk 00:42:03]} {[%emt 00:01:15]} Rxd6 {[%clk 00:31:50]}
{[%emt 00:00:08]} 26. Rxc8+ {[%clk 00:42:28]} {[%emt 00:00:05]} Ke7 {[%clk
00:32:11]} {[%emt 00:00:08]} 27. Ra8 {[%clk 00:41:10]} {[%emt 00:01:49]} Nf4
{[%clk 00:32:00]} {[%emt 00:00:41]} 28. Kf1 {[%clk 00:36:11]} {[%emt 00:05:29]}
Rc6 {[%clk 00:29:44]} {[%emt 00:02:46]} 29. g3 {[%clk 00:32:22]} {[%emt
00:04:19]} Nd3 {[%clk 00:29:21]} {[%emt 00:00:53]} 30. Ke2 {[%clk 00:31:15]}
{[%emt 00:01:37]} Nxb2 {[%clk 00:29:35]} {[%emt 00:00:16]} 31. Ra2 {[%clk
00:31:39]} {[%emt 00:00:06]} Nc4 {[%clk 00:29:55]} {[%emt 00:00:10]} 32. Nxc4
{[%clk 00:32:03]} {[%emt 00:00:06]} Rxc4 {[%clk 00:30:05]} {[%emt 00:00:20]} 33.
Kd3 {[%clk 00:32:27]} {[%emt 00:00:06]} Rc7 {[%clk 00:30:26]} {[%emt 00:00:09]}
34. f4 {[%clk 00:30:49]} {[%emt 00:02:08]} Kd6 {[%clk 00:30:25]} {[%emt
00:00:31]} 35. Ra6+ {[%clk 00:30:58]} {[%emt 00:00:22]} Kd7 {[%clk 00:30:37]}
{[%emt 00:00:18]} 36. b5 {[%clk 00:19:21]} {[%emt 00:12:07]} h6 {[%clk
00:29:04]} {[%emt 00:02:02]} 37. b6 {[%clk 00:19:18]} {[%emt 00:00:34]} Rb7
{[%clk 00:29:22]} {[%emt 00:00:11]} 38. Ra7 {[%clk 00:01:45]} {[%emt 00:18:03]}
Kc6 {[%clk 00:29:16]} {[%emt 00:00:36]} 39. Rxb7 {[%clk 00:01:07]} {[%emt
00:01:08]} Kxb7 {[%clk 00:29:40]} {[%emt 00:00:07]} 40. c4 {[%clk 00:01:27]}
{[%emt 00:00:10]} dxc4+ {[%clk 00:28:28]} {[%emt 00:01:42]} 41. Kxc4 {[%clk
00:01:52]} {[%emt 00:00:05]} Kxb6 {[%clk 00:28:49]} {[%emt 00:00:09]} 42. d5
{[%clk 00:30:19]} {[%emt 00:02:03]} Kc7 {[%clk 00:58:08]} {[%emt 00:01:11]}
1/2-1/2